bitfinex-derivatives/quotes_ETHF0:USTF0_20250918
["timestamp","ask_amount","ask_price","bid_price","bid_amount"]
[1758203028247,0.3089,4587.9,4587.6,3.2078]
[1758203028445,0.125,4588.0,4587.6,3.2078]
[1758203029044,0.3089,4587.9,4587.6,3.2078]
[1758203029251,0.125,4588.0,4587.6,3.2078]
[1758203029754,0.3089,4587.9,4587.7,0.62014]
[1758203030052,0.125,4588.0,4587.7,0.228]
[1758203030756,0.3089,4587.9,4587.7,0.2497]
[1758203030953,0.125,4588.0,4587.7,0.2497]
[1758203031152,0.125,4588.0,4587.7,0.64184]
[1758203031353,0.3089,4587.9,4587.7,0.2497]
[1758203031548,0.125,4588.0,4587.9,0.39213]
[1758203031749,0.1199,4588.5,4588.3,0.39209]
[1758203032054,0.4288,4588.5,4588.4,3.4358]
[1758203032462,0.4288,4588.5,4588.4,3.2078]
[1758203032753,0.4288,4588.5,4588.4,3.4358]
[1758203037266,0.4288,4588.5,4588.4,3.2078]
[1758203037458,0.4288,4588.5,4588.2,0.228]
[1758203038360,0.4288,4588.5,4588.4,3.2078]
[1758203038565,0.4288,4588.5,4588.2,0.228]
[1758203038863,0.4136,4588.0,4587.9,3.2078]
[1758203040262,4.4136,4588.0,4587.9,3.2078]
[1758203040561,0.1193,4586.5,4586.1,3.4348]
[1758203040966,0.1193,4586.5,4586.1,3.82708]
[1758203041168,0.1193,4586.5,4586.1,3.4348]
[1758203041371,0.2943,4586.4,4586.1,3.2078]
[1758203041771,0.1193,4586.5,4586.1,3.2078]
[1758203041966,0.2943,4586.4,4586.1,3.2078]
[1758203042167,0.1193,4585.5,4585.0,3.2078]
[1758203042469,0.2943,4585.4,4585.0,3.2078]
[1758203042665,0.1193,4585.5,4585.0,3.4358]
[1758203043179,0.2943,4585.4,4585.0,3.4358]
[1758203043369,0.1193,4585.5,4585.0,3.4358]
[1758203044167,0.2943,4585.4,4585.0,3.4358]
[1758203044673,0.1193,4585.0,4584.5,0.0218]
[1758203044869,0.2943,4584.9,4584.7,0.228]
[1758203045368,0.2996,4584.9,4584.7,0.228]
[1758203045574,0.1193,4585.0,4584.8,3.60019]
[1758203045770,0.4189,4585.0,4584.9,0.228]
[1758203047567,0.1193,4585.0,4584.8,3.2078]
[1758203047774,0.2996,4584.9,4584.6,0.228]
[1758203048374,0.2996,4584.9,4583.8,3.2078]
[1758203048375,0.1201,4584.0,4583.8,3.2078]
[1758203048565,0.2996,4583.9,4583.8,3.2078]
[1758203048767,0.2996,4583.9,4583.8,0.228]
[1758203050581,0.1201,4583.5,4583.3,3.2078]
[1758203050875,0.2996,4583.4,4583.3,3.2078]
[1758203052676,0.1201,4583.0,4582.6,3.2078]
[1758203052976,0.1201,4583.0,4582.5,0.0218]
[1758203052977,3.5074,4582.9,4582.5,0.0218]
[1758203053996,0.1201,4583.0,4582.6,3.2078]
[1758203054482,0.1201,4583.0,4582.5,0.0218]
[1758203054681,0.2996,4582.9,4582.5,0.0218]
[1758203055283,0.1201,4582.5,4582.4,0.227]
[1758203055487,0.4197,4582.5,4582.4,0.227]
[1758203055683,0.1201,4582.5,4582.1,3.2078]
[1758203056394,0.2996,4582.4,4582.2,0.61961]
[1758203056793,0.2996,4582.4,4582.3,0.3926]
[1758203056993,0.1201,4582.5,4582.2,0.227]
[1758203057287,0.2996,4582.4,4582.2,0.227]
[1758203057490,0.1201,4582.5,4582.1,3.2078]
[1758203057888,0.2996,4582.4,4582.1,3.2078]
[1758203058292,0.2996,4582.4,4582.1,3.60042]
[1758203058491,0.2996,4582.4,4582.2,0.61961]
[1758203058693,0.2996,4582.4,4582.3,0.3926]
[1758203059289,0.1201,4582.5,4582.2,0.227]
[1758203059590,0.4197,4582.5,4582.4,0.3926]
[1758203059798,0.4197,4583.0,4582.2,0.227]
[1758203060090,0.4197,4583.0,4582.9,3.2078]
[1758203060290,0.4197,4583.0,4581.6,0.0218]
[1758203060291,0.2996,4581.9,4581.8,3.2078]
[1758203060689,0.2996,4581.4,4581.0,3.2078]
[1758203061789,0.2996,4581.4,4581.2,0.39269]
[1758203061990,0.2996,4581.4,4581.1,0.228]
[1758203063294,0.2996,4581.4,4581.0,3.2078]
[1758203064390,0.1201,4581.0,4580.6,0.0218]
[1758203064596,0.2996,4580.9,4580.6,0.0218]
[1758203064893,0.1201,4580.5,4580.2,3.2078]
[1758203065286,0.1201,4580.0,4579.7,3.2078]
[1758203065696,3.5559,4580.0,4579.0,3.2078]
[1758203066096,0.2996,4579.9,4579.0,3.2078]
[1758203066292,0.2996,4578.4,4578.0,3.2078]
[1758203066488,3.2078,4578.3,4577.4,3.2078]
[1758203066688,0.2996,4578.2,4577.0,0.3007]
[1758203066892,0.2996,4578.2,4576.9,3.82886]
[1758203067088,3.2078,4578.3,4577.4,3.2078]
[1758203067295,0.2996,4578.2,4576.9,3.4358]
[1758203067491,0.2996,4578.2,4576.9,3.82886]
[1758203067793,0.2996,4578.0,4577.0,0.1241]
[1758203067995,3.2078,4578.3,4577.5,0.3007]
[1758203068396,3.2078,4578.3,4577.4,3.2078]
[1758203068799,0.2996,4578.2,4577.5,0.69371]
[1758203069005,0.2996,4578.2,4577.5,0.3007]
[1758203069299,0.1201,4578.5,4577.9,3.2078]
[1758203069693,0.2996,4578.4,4578.0,0.228]
[1758203069892,3.5074,4578.9,4578.1,0.3007]
[1758203070089,0.2996,4578.9,4578.1,0.3007]
[1758203070292,0.2996,4578.9,4577.9,3.2078]
[1758203070293,3.2078,4578.9,4577.9,3.2078]
[1758203070496,0.2996,4578.8,4577.9,3.2078]
[1758203070998,0.1201,4578.0,4577.4,3.2078]
[1758203071195,3.5074,4577.9,4577.0,0.0057]
[1758203071900,0.2996,4577.4,4577.0,0.0057]
[1758203072293,0.2996,4576.9,4576.3,3.22965195]
[1758203073304,3.2078,4577.1,4576.4,0.3007]
[1758203073601,0.2996,4576.9,4576.3,3.22965195]
[1758203073904,0.1201,4577.0,4576.3,3.22965195]
[1758203074207,3.5074,4576.4,4576.3,0.02185195]
[1758203074694,0.2996,4575.9,4575.5,0.0063]
[1758203075203,3.5074,4575.9,4575.5,0.0063]
[1758203075597,0.3056,4575.8,4575.5,0.0063]
[1758203076099,0.3056,4575.6,4575.5,0.0063]
[1758203076298,0.3056,4575.6,4573.6,3.2078]
[1758203076299,0.1272,4575.5,4573.6,3.2078]
[1758203076601,3.2078,4574.4,4573.7,0.69654]
[1758203076900,0.229,4574.8,4574.1,3.2078]
[1758203077099,3.2078,4575.0,4574.2,0.3032]
[1758203077300,3.2078,4575.0,4574.6,0.3032]
[1758203077595,3.2078,4575.0,4574.5,0.1267]
[1758203077800,3.2078,4575.6,4574.9,3.2078]
[1758203078000,3.2078,4576.2,4575.1,0.3032]
[1758203078193,3.2078,4576.2,4575.0,0.4299]
[1758203078398,3.2078,4575.2,4574.5,0.4299]
[1758203078597,3.2078,4574.7,4574.5,0.1267]
[1758203078805,3.2078,4574.7,4574.0,0.4299]
[1758203079198,3.2078,4574.7,4574.0,0.1267]
[1758203079404,0.23,4575.2,4574.4,0.39328]
[1758203079705,0.23,4575.2,4574.6,0.3032]
[1758203079906,0.3056,4575.4,4574.6,0.3032]
[1758203080302,0.23,4575.3,4574.6,0.3032]
[1758203080601,0.3056,4575.4,4574.6,0.3032]
[1758203080802,3.2078,4575.5,4575.0,0.1267]
[1758203080994,0.3056,4576.6,4575.6,0.3032]
[1758203081195,0.23,4576.5,4575.6,0.3032]
[1758203081598,0.23,4576.4,4575.6,0.3032]
[1758203081800,3.5134,4576.2,4575.0,0.1267]
[1758203081999,3.5134,4576.2,4575.6,0.0056]
[1758203082301,0.5366,4576.1,4575.6,0.0056]
[1758203082905,3.2078,4575.7,4575.6,0.0056]
[1758203083105,3.5134,4575.7,4575.6,0.0056]
[1758203083696,3.7444,4575.7,4575.6,0.0056]
[1758203083903,7.7444,4575.7,4574.2,0.3032]
[1758203084104,3.2078,4574.9,4574.2,0.3032]
[1758203084410,3.4388,4574.9,4574.2,0.3032]
[1758203085310,3.2078,4574.3,4573.7,0.3032]
[1758203085504,0.3056,4574.1,4573.7,0.3032]
[1758203085700,0.3056,4574.1,4573.6,0.3032]
[1758203085899,3.2078,4574.8,4574.0,3.3345]
[1758203086103,0.3056,4574.8,4574.0,0.3032]
[1758203086301,3.4388,4574.9,4573.5,3.3345]
[1758203086302,3.5134,4574.4,4573.5,3.3345]
[1758203086500,0.3056,4574.2,4573.5,3.2078]
[1758203086705,0.3056,4574.2,4573.0,3.3345]
[1758203087108,0.3056,4574.2,4573.1,0.3032]
[1758203087297,0.232,4574.1,4573.1,0.3032]
[1758203087502,0.3056,4573.8,4573.1,0.3032]
[1758203087698,0.232,4573.7,4573.1,0.3032]
[1758203087905,0.232,4573.8,4573.1,0.3032]
[1758203088610,0.232,4573.8,4573.2,0.3032]
[1758203088810,3.2078,4573.9,4573.5,0.4299]
[1758203089010,3.2078,4573.9,4573.6,0.3032]
[1758203089406,0.232,4574.3,4573.7,0.3032]
[1758203089603,3.2078,4574.6,4573.7,0.3032]
[1758203089805,0.232,4574.3,4573.7,0.3032]
[1758203090007,0.232,4574.3,4573.9,0.39332]
[1758203090208,0.232,4574.3,4574.0,0.52002]
[1758203090412,3.2078,4575.1,4574.3,0.39329]
[1758203090709,3.2078,4575.1,4574.5,0.1267]
[1758203091310,3.2078,4575.1,4574.6,0.3032]
[1758203091712,3.2078,4575.1,4575.0,0.4299]
[1758203092107,0.232,4575.3,4575.0,0.4299]
[1758203092108,3.2078,4576.0,4575.0,4.4299]
[1758203092310,3.2078,4576.0,4575.3,0.3032]
[1758203092513,0.3056,4575.9,4575.3,0.3032]
[1758203092904,3.2078,4576.0,4575.3,0.3032]
[1758203093106,3.2078,4576.5,4575.6,0.69638]
[1758203093313,0.52725843,4576.4,4575.7,0.69637]
[1758203093510,0.52725843,4576.3,4575.7,0.3032]
[1758203093703,3.4398,4576.5,4576.0,0.1267]
[1758203094017,3.7454,4576.5,4576.1,0.3032]
[1758203094215,0.83371625,4576.4,4576.1,0.3032]
[1758203094411,0.83371625,4576.3,4576.1,0.3032]
[1758203094609,0.3056,4576.1,4574.8,0.3032]
[1758203094812,3.2078,4575.6,4574.8,0.3032]
[1758203095011,3.2078,4575.1,4574.8,0.3032]
[1758203095308,0.52985555,4575.0,4574.8,0.3032]
[1758203095507,0.52985555,4574.9,4574.8,0.3032]
[1758203095711,0.52985555,4575.0,4574.3,3.60109]
[1758203095910,0.5376,4575.4,4574.3,3.60109]
[1758203095911,0.52985555,4574.9,4574.3,3.2078]
[1758203096116,0.52985555,4574.8,4574.3,3.2078]
[1758203096313,0.52985555,4574.7,4574.6,0.3032]
[1758203096513,0.52985555,4574.7,4574.6,0.39326]
[1758203096709,3.2078,4575.8,4575.1,0.3032]
[1758203096914,0.232,4575.5,4575.4,0.3032]
[1758203097215,1.06323591,4575.5,4575.1,0.3032]
[1758203097413,0.75763591,4575.4,4575.0,0.1267]
[1758203097608,0.53039453,4575.3,4575.1,0.3032]
[1758203097806,0.53039453,4575.2,4575.1,0.69643]
[1758203098014,3.2078,4575.8,4575.6,0.2907]
[1758203098322,0.52852679,4575.7,4575.6,0.68388]
[1758203098919,0.52852679,4575.7,4575.6,4.68388]
[1758203099118,0.52852679,4575.7,4575.6,4.91588]
[1758203099413,3.2078,4576.3,4576.2,0.2907]
[1758203099619,3.73486328,4576.3,4576.2,0.2907]
[1758203100308,0.2995,4576.2,4574.9,3.2078]
[1758203100613,3.2078,4575.1,4574.5,0.1267]
[1758203100819,0.3595,4574.5,4573.5,0.2907]
[1758203101113,0.74520577,4574.4,4573.5,0.68406]
[1758203101312,0.74520577,4574.3,4573.5,0.4162]
[1758203101617,0.52706328,4574.2,4574.1,0.2907]
[1758203101917,0.52706328,4574.7,4574.1,0.2907]
[1758203102113,0.52706328,4574.6,4574.4,0.2907]
[1758203102312,0.52706328,4574.5,4574.0,0.51881]
[1758203102621,0.52706328,4574.4,4574.2,0.2907]
[1758203102920,0.232,4575.1,4574.6,0.2907]
[1758203103120,0.74457192,4575.0,4574.6,0.2907]
[1758203103421,0.74457192,4574.9,4574.5,0.1255]
[1758203103620,0.74457192,4574.8,4574.5,0.1255]
[1758203103815,0.52624472,4574.7,4574.6,0.2907]
[1758203104709,0.52624472,4574.7,4574.0,0.51882]
[1758203104909,0.74473035,4574.6,4573.9,3.2078]
[1758203105212,0.2995,4574.7,4573.8,0.2907]
[1758203105213,3.5073,4574.4,4573.8,0.2907]
[1758203105416,1.05803678,4574.3,4573.5,0.1255]
[1758203105713,0.74473678,4574.2,4573.3,3.7309]
[1758203105910,0.74473678,4574.1,4573.3,3.7309]
[1758203106113,0.74473678,4574.0,4573.3,3.7309]
[1758203106314,0.74473678,4573.9,4573.3,3.4989]
[1758203106514,0.74473678,4573.8,4573.5,0.1271]
[1758203106715,0.52624472,4573.7,4573.4,0.2911]
[1758203106914,0.7447177,4573.6,4573.3,3.2078]
[1758203107122,0.52624472,4573.5,4573.3,3.2078]
[1758203107319,0.52624472,4573.4,4573.3,3.4989]
[1758203108017,0.52624472,4573.4,4573.3,0.2911]
[1758203108213,0.3133,4573.3,4572.4,0.2911]
[1758203108514,0.74469274,4573.2,4572.4,0.2911]
[1758203108720,0.74469274,4573.1,4572.5,0.1271]
[1758203109028,0.74469274,4573.0,4572.6,0.2911]
[1758203109217,0.52624472,4572.9,4572.7,0.39343]
[1758203109419,1.87777112,4573.9,4572.9,0.2911]
[1758203109420,0.232,4573.7,4572.9,0.2911]
[1758203109620,0.73666298,4573.6,4573.0,0.1271]
[1758203109815,0.73666298,4573.5,4573.1,0.2911]
[1758203110010,0.73666298,4573.4,4573.1,0.2911]
[1758203110222,3.2078,4573.2,4572.4,0.2911]
[1758203110516,0.73661691,4573.1,4572.4,0.2911]
[1758203110721,0.73661691,4573.0,4572.4,0.2911]
[1758203111019,0.73661691,4572.9,4572.3,0.2911]
[1758203111210,0.51831721,4572.8,4572.5,0.1271]
[1758203111411,3.2078,4573.7,4573.0,0.1271]
[1758203111621,0.51398533,4573.6,4573.5,0.4182]
[1758203112120,3.2078,4574.3,4573.5,0.4182]
[1758203112316,0.3133,4574.1,4573.3,3.2078]
[1758203112518,3.5211,4573.4,4572.6,0.232]
[1758203112718,0.3133,4572.7,4572.1,3.2078]
[1758203112916,0.3133,4572.5,4571.6,0.2911]
[1758203113123,0.3133,4572.2,4571.3,0.02187585]
[1758203113327,0.3133,4571.7,4571.3,0.02187585]
[1758203113516,0.3133,4571.5,4571.3,0.02187585]
[1758203113717,0.7222717,4571.4,4570.5,3.2078]
[1758203113917,0.3133,4571.2,4570.5,3.2078]
[1758203114218,0.3133,4571.2,4570.0,0.1271]
[1758203114219,0.73773388,4571.1,4570.0,3.3349]
[1758203114414,0.3133,4570.6,4570.0,3.2078]
[1758203114619,0.5453,4570.6,4570.0,3.2078]
[1758203114819,0.8179999,4570.5,4569.5,0.2911]
[1758203115026,0.7366999,4570.4,4569.5,0.4182]
[1758203115324,0.232,4570.4,4569.5,0.4182]
[1758203115515,0.232,4570.3,4569.5,0.4182]
[1758203115718,0.3133,4570.2,4569.3,3.2078]
[1758203115923,3.5211,4570.2,4569.3,3.2078]
[1758203116227,3.5211,4570.2,4569.4,0.2911]
[1758203116733,0.233,4570.1,4569.6,0.2911]
[1758203117115,0.233,4570.1,4569.5,0.1271]
[1758203117331,0.233,4570.5,4569.6,0.2911]
[1758203117528,3.2078,4571.5,4570.1,0.2911]
[1758203117822,3.2078,4571.5,4570.6,0.2911]
[1758203118218,3.4408,4571.5,4570.6,0.2911]
[1758203118418,3.7541,4571.5,4570.6,0.2911]
[1758203119023,3.2078,4571.5,4570.6,0.2911]
[1758203119231,3.2078,4571.5,4570.6,0.39361]
[1758203119527,3.2078,4571.5,4570.7,0.2911]
[1758203119919,3.5211,4571.0,4570.2,0.2911]
[1758203120129,0.233,4570.9,4570.2,0.2911]
[1758203120329,3.2078,4571.0,4570.2,0.2911]
[1758203120828,0.233,4571.2,4570.2,0.2911]
[1758203121023,0.233,4571.4,4570.7,0.2911]
[1758203121218,3.2078,4571.5,4570.8,0.2911]
[1758203121422,0.233,4571.6,4570.8,0.2911]
[1758203121822,3.6363,4571.5,4570.2,0.2911]
[1758203122132,3.2078,4570.3,4569.5,0.4182]
[1758203122327,0.233,4570.2,4569.5,0.2911]
[1758203122624,3.2078,4570.3,4569.5,0.4182]
[1758203122826,3.2078,4569.8,4569.5,0.2911]
[1758203123224,3.2078,4569.8,4569.1,0.2911]
[1758203124526,3.2078,4569.3,4568.5,3.4989]
[1758203124837,0.2712,4570.0,4567.8,3.2078]
[1758203124838,3.2078,4568.8,4567.8,3.2078]
[1758203125028,3.2078,4568.3,4567.6,0.2911]
[1758203125329,3.4408,4568.3,4567.6,0.2911]
[1758203126233,3.4408,4568.3,4567.0,0.1271]
[1758203126234,3.2078,4567.7,4567.0,0.1271]
[1758203126530,3.2078,4567.7,4567.1,0.2911]
[1758203126830,0.3133,4568.2,4567.1,3.2078]
[1758203127022,3.2078,4568.3,4567.2,0.2911]
[1758203127232,0.233,4568.5,4567.7,0.2911]
[1758203127728,3.5211,4569.3,4568.2,3.2078]
[1758203128026,3.2078,4569.3,4568.5,0.4182]
[1758203128220,3.2078,4569.8,4569.1,0.2911]
[1758203128421,0.3133,4570.5,4569.5,0.1271]
[1758203128422,3.2078,4570.3,4569.5,0.1271]
[1758203128729,0.3133,4571.0,4570.1,0.2911]
[1758203129125,3.2078,4571.1,4570.0,0.1271]
[1758203129426,3.2078,4571.1,4570.1,0.2911]
[1758203129626,3.5211,4571.6,4570.2,3.2078]
[1758203129834,0.234,4571.5,4570.8,0.2911]
[1758203130128,3.2078,4571.6,4571.0,0.1271]
[1758203130334,3.2078,4572.2,4571.5,0.1271]
[1758203130527,3.2078,4572.7,4572.1,0.2911]
[1758203131334,3.2078,4572.2,4571.5,0.2911]
[1758203131526,3.2078,4572.2,4571.5,0.4182]
[1758203131721,0.234,4572.7,4571.8,0.2911]
[1758203131926,0.234,4572.7,4571.0,0.1271]
[1758203131927,3.5211,4572.4,4571.1,0.2911]
[1758203132132,3.2078,4571.7,4571.1,0.2911]
[1758203132834,3.2078,4571.7,4570.6,0.234]
[1758203132835,0.3133,4571.6,4570.6,0.234]
[1758203133029,3.2078,4571.7,4570.6,0.234]
[1758203133233,0.1038,4573.0,4571.6,0.2911]
[1758203133234,3.2078,4572.3,4571.6,0.2911]
[1758203133438,3.2078,4572.3,4572.0,0.1271]
[1758203133732,3.2078,4572.3,4572.0,0.52059]
[1758203133924,3.2078,4572.3,4571.7,0.234]
[1758203134128,3.2078,4572.3,4571.6,0.2911]
[1758203134328,0.3133,4572.2,4571.4,3.2078]
[1758203134729,0.3133,4571.7,4571.0,0.2911]
[1758203134929,0.5473,4571.7,4570.6,3.2078]
[1758203135123,3.2078,4571.8,4570.9,0.2911]
[1758203135323,3.2078,4571.8,4571.2,0.2911]
[1758203136139,3.2078,4571.8,4570.9,0.234]
[1758203136328,0.3177,4571.7,4570.7,0.5343]
[1758203136528,0.5517,4571.7,4570.7,0.5343]
[1758203136825,0.234,4571.6,4570.7,0.5343]
[1758203137335,0.3177,4571.1,4569.9,0.3003]
[1758203137728,0.3177,4571.1,4570.0,0.1154]
[1758203138027,3.2078,4571.2,4571.1,0.3003]
[1758203138621,3.2078,4571.2,4570.5,0.4157]
[1758203138830,3.2078,4571.2,4570.6,0.3003]
[1758203139029,3.2078,4571.2,4571.0,0.1154]
[1758203139233,3.2078,4572.1,4571.3,0.39355]
[1758203139632,3.2078,4572.1,4571.4,0.3003]
[1758203140133,0.5517,4572.4,4571.4,0.3003]
[1758203140332,3.2078,4571.6,4570.8,0.5343]
[1758203140633,0.3177,4572.2,4571.2,0.3003]
[1758203141028,0.3177,4572.2,4571.2,0.69386]
[1758203141228,0.3177,4573.0,4572.0,0.3003]
[1758203141430,0.234,4573.2,4572.4,3.2078]
[1758203141732,0.234,4573.2,4571.7,0.39352]
[1758203141733,0.3177,4572.8,4571.2,3.2078]
[1758203141929,0.1038,4573.0,4571.1,0.3003]
[1758203141930,0.3177,4571.8,4571.1,0.3003]
[1758203142233,0.5517,4571.8,4570.5,3.8575]
[1758203142429,3.2078,4571.3,4570.8,0.3003]
[1758203142632,3.2078,4572.1,4571.3,0.3003]
[1758203142830,3.2078,4572.1,4571.6,0.39353]
[1758203143026,0.3378,4572.0,4570.1,0.3003]
[1758203143227,0.3177,4570.9,4570.1,0.3003]
[1758203143429,0.5517,4570.9,4570.1,0.3003]
[1758203143631,0.5517,4570.9,4570.0,3.2078]
[1758203144036,0.3177,4570.9,4570.0,3.5081]
[1758203144228,3.2078,4571.0,4570.0,3.3232]
[1758203144428,3.4418,4571.0,4570.1,0.3003]
[1758203144833,3.2078,4571.0,4570.1,0.3003]
[1758203145033,3.2078,4571.0,4570.3,0.39364]
[1758203145334,3.2078,4571.0,4570.1,0.3003]
[1758203146035,3.2078,4571.0,4569.5,0.4157]
[1758203146036,3.2078,4570.4,4569.5,0.4157]
[1758203146234,3.2078,4570.4,4569.5,0.6497]
[1758203146441,3.2078,4570.4,4569.5,0.4157]
[1758203146832,3.2078,4570.4,4569.8,0.3003]
[1758203147132,0.234,4570.8,4569.8,0.3003]
[1758203147334,3.2078,4570.4,4569.8,0.3003]
[1758203149137,3.2078,4571.0,4570.2,0.3003]
[1758203150049,3.2078,4571.0,4570.6,0.39362]
[1758203150335,3.2078,4571.5,4570.7,0.3003]
[1758203151638,0.3177,4570.9,4570.0,3.2078]
[1758203151941,3.5255,4570.5,4569.6,0.3003]
[1758203152141,0.234,4570.4,4569.6,0.3003]
[1758203153442,3.2078,4569.9,4569.2,0.3003]
[1758203153639,3.2078,4569.3,4568.4,0.3128]
[1758203153943,0.234,4569.2,4568.6,0.3128]
[1758203155241,0.234,4569.2,4567.8,0.234]
[1758203155242,0.1226,4566.5,4565.9,1.56230444]
[1758203155549,0.1226,4566.5,4565.0,5.12043685]
[1758203155550,3.7357,4566.4,4565.0,3.2078]
[1758203155746,3.5017,4566.4,4565.0,3.2078]
[1758203156243,3.51028542,4566.4,4566.3,4.02189981]
[1758203156635,0.30248542,4566.4,4566.3,4.02189981]
[1758203156841,3.80418542,4566.4,4566.3,0.02189981]
[1758203157042,3.5017,4566.4,4566.3,0.02189981]
[1758203157441,0.2939,4565.3,4564.4,3.2078]
[1758203157742,0.236,4565.2,4564.4,3.2078]
[1758203157943,3.2078,4565.3,4564.5,0.21907]
[1758203158438,3.2078,4565.3,4564.5,0.238]
[1758203158640,0.28930339,4565.2,4564.5,0.238]
[1758203158841,3.2078,4565.3,4564.5,0.238]
[1758203159040,0.28929689,4565.2,4564.5,0.238]
[1758203159236,0.2939,4565.9,4564.5,0.238]
[1758203159547,3.2078,4565.9,4565.1,0.70689]
[1758203159743,3.2078,4565.9,4565.2,0.238]
[1758203159943,3.2078,4565.9,4565.2,0.63208]
[1758203160145,3.2078,4565.9,4565.3,0.238]
[1758203160342,3.5017,4565.9,4564.7,0.238]
[1758203160541,3.5017,4565.9,4564.0,0.98547]
[1758203160542,3.2078,4565.2,4563.7,3.2078]
[1758203160843,3.2078,4564.1,4562.3,0.3128]
[1758203161041,3.2078,4562.7,4562.0,0.3128]
[1758203161237,3.2078,4562.7,4562.5,0.3128]
[1758203161540,3.2078,4563.4,4562.4,0.121]
[1758203161740,0.0047,4562.6,4560.4,3.2078]
[1758203161940,0.0047,4562.6,4560.0,0.121]
[1758203161941,3.2078,4562.1,4561.1,0.3128]
[1758203162137,3.2078,4562.1,4561.4,0.3128]
[1758203162138,3.4498,4562.1,4561.4,0.3128]
[1758203162349,3.4498,4562.1,4560.0,0.121]
[1758203162350,0.0047,4561.4,4560.4,3.5206]
[1758203162544,3.4538,4561.5,4560.6,0.121]
[1758203162746,3.2078,4562.0,4561.0,3.2078]
[1758203162945,3.2078,4561.4,4561.2,0.121]
[1758203163135,3.2078,4561.4,4560.6,0.121]
[1758203163341,3.2078,4561.4,4560.7,0.3128]
[1758203163542,3.2078,4560.8,4560.7,0.3128]
[1758203164346,3.2078,4561.9,4560.7,3.5206]
[1758203164552,0.53119621,4561.8,4560.9,0.3128]
[1758203164846,3.2078,4561.9,4560.9,0.3128]
[1758203164847,0.248,4561.7,4560.9,0.3128]
[1758203165041,3.2078,4561.9,4560.9,0.3128]
[1758203165246,3.2078,4562.4,4561.9,0.3128]
[1758203165443,3.2078,4562.4,4561.3,0.3078]
[1758203165654,3.2078,4562.4,4561.9,0.3078]
[1758203165854,3.2078,4562.9,4562.5,0.3078]
[1758203166052,0.28280424,4562.8,4561.4,0.3163]
[1758203166351,1.56447112,4567.2,4561.4,0.3163]
[1758203166352,0.28280424,4562.7,4562.1,0.3078]
[1758203166552,3.2078,4563.1,4562.1,0.3078]
[1758203167348,3.2078,4562.6,4562.1,0.3078]
[1758203167841,3.4568,4563.1,4562.4,0.1186]
[1758203168042,3.2078,4563.1,4562.5,0.3078]
[1758203168851,3.2078,4563.1,4563.0,0.1186]
[1758203169051,3.2078,4563.1,4563.0,0.4264]
[1758203169348,3.2078,4563.7,4563.0,0.4264]
[1758203170052,3.4568,4563.7,4563.0,0.4264]
[1758203170449,3.2078,4563.7,4563.0,0.4264]
[1758203170648,3.2078,4563.7,4563.6,0.4264]
[1758203170855,3.2078,4565.0,4564.0,0.39418]
[1758203171046,3.2078,4565.0,4564.3,0.3078]
[1758203172355,3.2078,4565.6,4564.9,0.3078]
[1758203173050,3.2078,4565.6,4565.5,0.3078]
[1758203173453,3.2078,4565.6,4565.5,4.3078]
[1758203173749,3.2078,4566.1,4565.5,4.3078]
[1758203173957,3.2078,4566.1,4566.0,0.4264]
[1758203174260,3.2078,4566.6,4566.0,0.1186]
[1758203174449,3.2078,4566.1,4565.4,0.1186]
[1758203174750,3.2078,4566.1,4563.5,32.53358]
[1758203174751,3.2078,4566.1,4564.9,0.3078]
[1758203174950,3.2078,4566.1,4565.5,0.3078]
[1758203176046,3.2078,4565.6,4564.9,0.3078]
[1758203176251,3.2078,4565.0,4564.9,0.3078]
[1758203176652,3.2078,4565.0,4564.2,0.4264]
[1758203178264,3.2078,4564.5,4563.6,0.4264]
[1758203178751,3.2078,4564.5,4563.7,0.3078]
[1758203178955,3.2078,4564.5,4564.3,0.3078]
[1758203179455,3.2078,4564.5,4564.2,0.1186]
[1758203179659,3.2078,4564.5,4564.4,0.3078]
[1758203180156,3.2078,4565.6,4564.4,7.60195]
[1758203180359,0.26752372,4565.5,4564.6,0.3078]
[1758203180561,0.26752372,4565.4,4564.6,0.3078]
[1758203180759,0.26752372,4565.3,4564.6,0.3078]
[1758203180962,3.2078,4565.0,4563.9,0.5548]
[1758203181155,3.2078,4564.2,4564.0,0.3078]
[1758203181356,0.26752372,4564.1,4564.0,0.3078]
[1758203181559,3.2078,4564.7,4564.0,0.3078]
[1758203181757,0.26801294,4564.6,4564.0,0.3078]
[1758203182058,0.26801294,4564.5,4564.3,0.70196]
[1758203182260,0.26834671,4564.4,4564.3,0.3078]
[1758203182659,3.2078,4564.7,4564.3,0.3078]
[1758203182950,3.2078,4564.7,4564.5,0.70195]
[1758203183152,3.2078,4565.4,4565.2,0.3078]
[1758203183352,0.26883084,4565.3,4565.2,0.3078]
[1758203183661,0.022,4566.3,4565.6,0.3078]
[1758203183865,0.022,4566.3,4565.4,0.1186]
[1758203183866,0.25916688,4566.2,4566.0,0.1186]
[1758203184164,0.022,4566.3,4566.1,0.3078]
[1758203184459,0.25411971,4566.2,4565.5,0.3078]
[1758203184757,0.25411971,4566.1,4565.6,0.247]
[1758203184963,0.25411971,4566.0,4565.4,0.1186]
[1758203185164,0.78040806,4566.0,4565.4,0.1186]
[1758203185364,3.2078,4566.1,4565.4,0.1186]
[1758203185365,0.78040806,4565.9,4565.5,0.3078]
[1758203185559,0.78040806,4565.8,4565.5,0.3078]